Cogmind - Beta 10.1 *** ADVENTURER MODE // 2020.09.23 @ 19:02:56 Player: Draxis Result: Destroyed by as-82655 with Assembled Rifle Performance ------------- Evolutions (0) 0 Regions Visited (2) 400 Robots Destroyed (39) 195 Value Destroyed (473) 473 Prototype IDs (0) 0 Alien Tech Used (0) 0 Bonus (0) 0 TOTAL SCORE: 1068 Bonus ------- None Cogmind --------- Core Integrity 0/250 Matter 245/300 Energy 79/100 System Corruption 1% Temperature Cool (9) Movement Rolling (80) Location -10/Mines Parts ------- > --- POWER (1) -------- (None) > --- PROPULSION (2) --- Wheel Compact Wheel > --- UTILITY (2) ------ (None) > --- WEAPON (2) ------- (None) > --- INVENTORY (4) ---- Ion Engine Light Ion Engine Compact Wheel Light Armor Plating Peak State ------------ > --- POWER ------------ Ion Engine > --- PROPULSION ------- Wheel Compact Wheel > --- UTILITY ---------- Small Storage Unit Targeting Computer > --- WEAPON ----------- Light EM Pulse Cannon Light EM Pulse Cannon > --- INVENTORY -------- Light Ion Engine Wheel Compact Wheel Signal Interpreter Light Armor Plating Grenade Launcher [Rating: 9] Favorites ----------- Power Ion Engine Engine Ion Engine Propulsion Wheel Leg Aluminum Leg Wheel Wheel Utility Signal Interpreter Storage Large Storage Unit Processor Signal Interpreter Weapon Light EM Pulse Cannon Energy Gun Small Laser Energy Cannon Light EM Pulse Cannon Launcher Grenade Launcher Build | -11 -10 -10 ------- Run | Scr Mat Min Slots Evolved . | . . . Power . | . . . Propulsion . | . . . Utility . | . . . Weapon . | . . . Parts Attached 14 | 2 8 4 Power . | . . . Engine . | . . . Core . | . . . Reactor . | . . . Propulsion 4 | 2 . 2 Treads . | . . . Leg . | . . . Wheel 4 | 2 . 2 Hover . | . . . Flight . | . . . Utility 3 | . 3 . Device . | . . . Storage 1 | . 1 . Processor 2 | . 2 . Hackware . | . . . Protection . | . . . Artifact . | . . . Weapon 7 | . 5 2 Energy Gun 1 | . 1 . Energy Cannon 4 | . 3 1 Ballistic Gun . | . . . Ballistic Cannon . | . . . Launcher 2 | . 1 1 Special Weapon . | . . . Impact Weapon . | . . . Slashing Weapon . | . . . Piercing Weapon . | . . . Special Melee Weapon . | . . . Unidentified Prototypes . | . . . Parts Lost 8 | . 1 7 Power 1 | . . 1 Propulsion 2 | . . 2 Utility 1 | . . 1 Weapon 4 | . 1 3 Highest Loss Streak 7 | . 1 7 Average Slot Usage (%) 97 | . 99 67 Engine 13 | . 14 10 Wheel 27 | . 28 21 Storage 13 | . 14 10 Processor 13 | . 13 10 Energy Gun 8 | . 8 . Energy Cannon 14 | . 15 10 Launcher 3 | . 3 3 Naked Turns . | . . . Heaviest Build 29 | 12 29 29 Greatest Support 26 | 26 26 26 Greatest Overweight (x) 2 | . 1 2 Average Overweight (x) . | . . 1 Largest Inventory Capacity 10 | 6 10 10 Average Capacity 8 | 6 8 9 Most Carried 7 | 6 7 7 Average Carried 5 | 4 5 5 Final Capacity 10 | 6 10 4 Final Carried 7 | 5 7 4 Class Distribution -------------------- 100% | Mutant Dominant Class ---------------- Mutant | -10/Materials Mutant | -10/Mines Resources | -11 -10 -10 ----------- Run | Scr Mat Min Matter Collected 320 | 220 100 . Remotely . | . . . Salvage Created 914 | 85 744 85 Parts 35 | 2 33 . Haulers Intercepted 2 | . 2 . Recyclers Shooed 1 | . 1 . Parts Field Recycled . | . . . Retrieved Matter . | . . . Parts Self-Destructed . | . . . Prevented . | . . . Kills | -11 -10 -10 ------- Run | Scr Mat Min Combat Hostiles Destroyed 30 | . 15 15 Guns 4 | . 4 . Cannons 8 | . 6 2 AOE 17 | . 4 13 Classes Destroyed 7 | 1 5 1 Builder 2 | . 2 . Hauler 2 | . 2 . Recycler 3 | 1 2 . Watcher 2 | . 2 . Swarmer 6 | . 6 . Grunt 9 | . 9 . Assembled 15 | . . 15 Best Kill Streak 15 | 1 14 15 Combat Bots Only 15 | . 6 15 Max Kills in Single Turn 4 | 1 4 3 Gunslinging . | . . . Exploded 3 | . 2 3 Melee . | . . . Uniques/NPCs Destroyed . | . . . Combat | -11 -10 -10 -------- Run | Scr Mat Min Damage Taken 772 | . 377 395 Core 250 | . 134 116 Absorbed by Shields . | . . . Core Remaining (%) 100 | 100 . . Volleys Fired 53 | 1 42 10 Largest 2 | 2 2 2 Hottest 112 | 80 112 112 Shots Fired 77 | 2 64 11 Gun 32 | 2 30 . Cannon 38 | . 32 6 Launcher 7 | . 2 5 Special . | . . . Kinetic . | . . . Thermal 19 | 1 18 . Explosive 7 | . 2 5 Electromagnetic 51 | 1 44 6 Robot Hit Streak 17 | 1 17 13 Robot Miss Streak 2 | . 2 1 Penetration Max . | . . . Secondary Targets . | . . . Shots Hit Robots 63 | 1 53 9 Core Hits 63 | 1 27 35 Critical Hits . | . . . Critical Kills . | . . . Critical Parts Destroyed . | . . . Melee Attacks . | . . . Impact . | . . . Slashing . | . . . Piercing . | . . . Sneak Attacks . | . . . Combat Hostiles . | . . . Follow-up Attacks . | . . . Damage Inflicted 2365 | 15 1530 820 Guns 294 | 15 279 . Cannons 736 | . 641 95 Explosions 1335 | . 610 725 Melee . | . . . Ramming . | . . . Kinetic . | . . . Thermal 217 | . 217 . Explosive 1271 | . 546 725 Electromagnetic 877 | 15 767 95 Impact . | . . . Slashing . | . . . Piercing . | . . . Highest Corruption 1 | . 1 1 Average Corruption 1 | . 1 1 Corruption Purged . | . . . Effects 3 | . 3 . Message Errors 1 | . 1 . Data Loss (minor) 1 | . 1 . Weapon Failures 1 | . 1 . Overload Shots . | . . . Overflow Damage 82 | . 74 8 Projectiles 18 | . 18 . Explosions 64 | . 56 8 Melee . | . . . Knockbacks . | . . . Impact . | . . . Kinetic . | . . . Secondary . | . . . Self-Inflicted Damage 93 | . 76 17 Shots 5 | . 3 2 Rammed . | . . . Targets Rammed . | . . . Kicked . | . . . Crushed . | . . . Highest Temperature 216 | 18 216 71 Average Temperature 56 | 12 61 32 Received Heat Transfer 178 | . 138 40 Siege Activations . | . . . Robots Corrupted 1 | . 1 . Combat Hostiles 1 | . 1 . Parts Fried 6 | . 6 . Impact Corruptions . | . . . Robots Melted . | . . . Combat Hostiles . | . . . Parts Melted . | . . . Heat Transferred 450 | . 450 . Parts Sabotaged . | . . . Parts Stolen . | . . . Parts Stripped . | . . . Power Chain Reactions 2 | . 2 . Missiles Intercepted . | . . . Alert | -11 -10 -10 ------- Run | Scr Mat Min Peak Influence 344 | 5 344 113 Initial 113 | . 2 113 Average 162 | 3 169 87 Maximum Alert Level 1 | . 1 . Low Security (%) 61 | 100 58 100 Level 1 38 | . 41 . Level 2 . | . . . Level 3 . | . . . Level 4 . | . . . Level 5 . | . . . High Security . | . . . Max Security . | . . . Squads Dispatched 5 | . 5 . Investigation 5 | . 5 . Extermination . | . . . Reinforcement . | . . . Assault . | . . . Garrison . | . . . Intercept . | . . . Construction Impeded . | . . . Haulers Reinforced . | . . . Stealth | -11 -10 -10 --------- Run | Scr Mat Min Distress Signals 1 | . 1 . Communications Jammed . | . . . Distress Signals . | . . . Times Spotted 46 | . 26 20 Peak Tracking Total 10 | . 5 10 Tactical Retreats 4 | . 4 . Traps | -11 -10 -10 ------- Run | Scr Mat Min Traps Triggered 1 | . 1 . Indirectly . | . . . Trap Hack Attempts . | . . . Triggered . | . . . Disarmed . | . . . Reprogrammed . | . . . Reused . | . . . Traps Extracted . | . . . Installed . | . . . Triggered . | . . . Machines | -11 -10 -10 ---------- Run | Scr Mat Min Machines Disabled 4 | . 4 . Max in Single Turn 2 | . 2 . Machines Sabotaged . | . . . Garrisons Compromised . | . . . Overloaded Fab Kills . | . . . Fab Network Shutdowns . | . . . Hacking | -11 -10 -10 --------- Run | Scr Mat Min Machines Accessed 9 | . 9 . Terminals 7 | . 7 . Fabricators . | . . . Repair Stations . | . . . Recycling Units 2 | . 2 . Scanalyzers . | . . . Garrison Access . | . . . Total Hacks 20 | . 20 . Successful 14 | . 14 . Failed 6 | . 6 . Catastrophic 1 | . 1 . Database Lockouts . | . . . Manual 16 | . 16 . Terminals 18 | . 18 . Fabricators . | . . . Repair Stations . | . . . Recycling Units 2 | . 2 . Scanalyzers . | . . . Garrison Access . | . . . Terminal Hacks 9 | . 9 . Robot Analysis 1 | . 1 . Terminal Index 1 | . 1 . Recycling Unit Index 1 | . 1 . Alert Level 2 | . 2 . Locate Traps 2 | . 2 . Recall Investigation 2 | . 2 . Fabricator Hacks . | . . . Repair Station Hacks . | . . . Recycling Unit Hacks . | . . . Scanalyzer . | . . . Garrison Access Hacks . | . . . Unauthorized Hacks 5 | . 5 . Terminals 3 | . 3 . Botnet 3 | . 3 . Fabricators . | . . . Repair Stations . | . . . Recycling Units 2 | . 2 . Tunnel 2 | . 2 . Scanalyzers . | . . . Garrison Access . | . . . Data Cores Recovered . | . . . Used . | . . . Hacking Detections 6 | . 6 . Full Trace Events 2 | . 2 . Feedback Events 1 | . 1 . Corruption 1 | . 1 . Feedback Blocked . | . . . Robot Schematics Acquired . | . . . Robots Built . | . . . Matter . | . . . Time . | . . . Total Robot Build Rating . | . . . Part Schematics Acquired . | . . . Parts Built . | . . . Matter . | . . . Time . | . . . Total Part Build Rating . | . . . Parts Repaired . | . . . Time . | . . . Parts Recycled . | . . . Recycled Matter . | . . . Retrieved Matter . | . . . Retrieved Components . | . . . Parts Scanalyzed . | . . . Part Schematics Acquired . | . . . Parts Damaged . | . . . Bothacking | -11 -10 -10 ------------ Run | Scr Mat Min Used RIF Installer . | . . . Robots Hacked . | . . . Non-combat . | . . . Combat . | . . . Robot Hacks Applied . | . . . Relay Couplers Released . | . . . Robots Rewired . | . . . Allies Hacked . | . . . Hacks Repelled . | . . . Allies | -11 -10 -10 -------- Run | Scr Mat Min Total Allies . | . . . Largest Group . | . . . Highest-Rated Group . | . . . Highest-Rated Ally . | . . . Total Orders . | . . . Ally Attacks . | . . . Total Damage . | . . . Kills . | . . . Allies Corrupted . | . . . Allies Melted . | . . . Intel | -11 -10 -10 ------- Run | Scr Mat Min Robot Analysis Total 1 | . 1 . Derelict Logs Recovered . | . . . Drone Launches . | . . . Drone Recoveries . | . . . Exploration | -11 -10 -10 ------------- Run | Scr Mat Min Turns Passed 749 | 13 700 36 Spaces Moved 536 | 7 520 9 Core . | . . . Treads . | . . . Legs . | . . . Wheels 536 | 7 520 9 Hover . | . . . Flight . | . . . Fastest Speed 80 | 90 90 80 Average Speed 95 | 90 95 97 Slowest Speed 100 | 90 100 100 Overloaded Moves . | . . . Propulsion Burnouts . | . . . Robots Hopped . | . . . Cave-ins Triggered . | . . . Exploration Rate (%) 29 | 2 80 6 Regions Visited 2 Branch Regions 1 Pre-discovered Areas 2 | . 2 . Known Exits Taken 1 | . 1 . Unknown Exits Taken 1 | 1 . . Scrap Searched . | . . . Spaces Dug . | . . . Terrain Destroyed 62 | . 21 41 Melee . | . . . Projectile . | . . . AOE 62 | . 21 41 Terrain Rammed . | . . . Walls Destroyed . | . . . Machines Disabled . | . . . Actions | -11 -10 -10 --------- Run | Scr Mat Min Total 694 | 12 657 25 Wait 77 | . 76 1 Move 534 | 6 519 9 Hop . | . . . Pick Up 7 | 1 6 . Fast Attach 3 | . 3 . Attach 7 | 2 2 3 Detach 1 | . 1 . Swap 4 | . 3 1 Drop 8 | 2 5 1 Fire 53 | 1 42 10 Melee . | . . . Ram . | . . . Kick . | . . . Crush . | . . . Escape Stasis . | . . . Rewire . | . . . Trap . | . . . Miscellaneous . | . . . Route ------- -11/Scrapyard -10/Materials (discovered 3 exits: *Mat x2 / *Min) -10/Mines History --------- Turn | Location | Event 7 | -11/Scrapyard | Discovered new exit (range 3) 14 | -11/Scrapyard | Entered Materials 231 | -10/Materials | Discovered new exit (range 5) 251 | -10/Materials | Identified exit to Materials 296 | -10/Materials | Discovered exit to Materials (range 4) 326 | -10/Materials | Build established: Mutant 446 | -10/Materials | Discovered new exit (range 14) 455 | -10/Materials | Core integrity fell below 50% 713 | -10/Materials | Identified exit to Mines 714 | -10/Materials | Entered Mines 715 | -10/Mines | Assembled infested the area 733 | -10/Mines | Core integrity fell below 20% 750 | -10/Mines | Destroyed by as-82655 with Assembled Rifle Last Messages --------------- 00726_ Destroyed Asb. Hover Unit. 00727_ Lgt. EM Pulse Cannon destroyed. 00728_ as-22768 destroyed. 00728_ as-20036 destroyed. 00728_ as-62798 destroyed. 00729_ Wheel destroyed. 00731_ as-04213 destroyed. 00731_ as-96625 destroyed. 00732_ The unstable cave ceiling collapses. 00732_ Grenade Launcher destroyed. 00732_ Com. Wheel destroyed. 00735_ The unstable cave ceiling collapses. 00740_ as-93127 destroyed. 00742_ Signal Interpreter destroyed. 00742_ Knocked back. 00746_ as-86192 destroyed. [Achievement: Exterminator] 00747_ Ion Engine destroyed. 00748_ Lgt. EM Pulse Cannon destroyed. 00749_ Dropped Lrg. Storage Unit. Map ----- +----------------------------------------------------+ | ?????????????????????????????? | | ?????????????????????????????? | | ?????????????????????????????? | | ?????????????????????????????? | | ?????????????????????????????? | | ?????????????????????????????? | | ?????????????????????????????? | | ?????????????????????????????? | | ?????????????????????????????? | | ?????????????????????????????? | | ?????????????????????????????? | | ?????????????????????????????? | | ?????????????????????????????? | | ?????????????????????????????? | | ?????????????????????????????? | | ?????????????????????????????? | | ?????????????????????????????? | | ?????????????????????????????? | | ?????????????????????????????? | | ?????????????????????????????? | | ??#??????????????????????????? | | ??# ??#####??????????????????? | | ??# ### ##?????????????????? | | ?## #?????????????????? | | ?# ##????????????????? | | ?# @ aaa ###??????????????? | | ?# !%a ##?????????????? | | ?# ## #?????????????? | | ?## ##### #?????????????? | | ??### ##?????????????? | | ??# % ##??????????????? | | ??# #???????????????? | | ??## # ??????????????? | | ??# %# #?????????????? | | ??## ## #?????????????? | | ??# % ##? $#?????????????? | | ??# ??? #?????????????? | | ??### ####??? #?????????????? | | ????# ??????? ?????????????? | | ???? ?????????##?????????????? | | ??? ????????????????????????? | | ??# ?????????????????????????? | | ?????????????????????????????? | | ?????????????????????????????? | | ?????????????????????????????? | | ?????????????????????????????? | | ?????????????????????????????? | | ?????????????????????????????? | | ?????????????????????????????? | | | +----------------------------------------------------+ Best States ------------- Heat Dissipation 25 Energy Generation 10 Energy Capacity 250 Matter Stores 300 Matter Capacity 300 Sight Range 16 Terrain Scan Density 10 Resistance: KI 20 Resistance: TH 20 Resistance: EX 20 Resistance: EM 20 Resistance: I 20 Resistance: S 20 Resistance: P 20 Evasion (%) 42 Targeting Accuracy 5 Offensive Hacking 10 Item Schematics ----------------- None Robot Schematics ------------------ None Fabricated ------------ Nothing Alien Tech Used ----------------- None Achievements -------------- Exterminator Challenges ------------ None Game ------ Seed RecoilSubatomicBattery Manual? 0 Play Time 00:17:07 Cumulative 85.1 hours Start 2020.09.23 @ 18:45:49 End 2020.09.23 @ 19:02:56 Sessions 1 Manual Loads 0 Difficulty Adventurer Special Mode None Game No. 29 Rogue 27 Adventurer 2 Explorer 0 Win Type - Total 1 Types 1/0/0/0/0/0/0/0/0 Lore% 51 Gallery% 57 Achievement% 38 Wizard Run 0 Options --------- ASCII 0 Keyboard 0 Movement Numpad Keybinds 0 Fullscreen 2 Font 18/SmallcapsGlow Map View 76x50 Tactical HUD 1 Map Filters NONE Filters NONE Steam 1 RUN: 47d14a6e-1d34-40cb-a9e2-8c811ea456b5